Cogmind - Beta 13 *** ADVENTURER MODE // 2024.07.21 @ 11:24:36 Player: LegoMDS Result: Destroyed by D-53 Grenadier with Mini Grenade Launcher Performance ------------- Evolutions (0) 0 Regions Visited (4) 800 Robots Destroyed (20) 100 Value Destroyed (403) 403 Prototype IDs (0) 0 Alien Tech Used (0) 0 Bonus (300) 300 TOTAL SCORE: 1603 Bonus ------- Aligned with FarCom 300 Cogmind --------- Core Integrity 0/250 Matter 273/300 Energy 100/100 System Corruption 0% Temperature Cool (0) Movement Core (50) Location -9/Mines Parts ------- > --- POWER (1) -------- (None) > --- PROPULSION (2) --- (None) > --- UTILITY (2) ------ Terrain Scan Processor > --- WEAPON (2) ------- Mini Grenade Launcher > --- INVENTORY (5) ---- Flying Fortress v7 Peak State ------------ > --- POWER ------------ Light Ion Engine > --- PROPULSION ------- VTOL Module VTOL Module > --- UTILITY ---------- Terrain Scan Processor Light Armor Plating > --- WEAPON ----------- Light Assault Rifle Mini Grenade Launcher > --- INVENTORY -------- VTOL Module Flying Fortress v7 [Rating: 14] Favorites ----------- Power Light Ion Engine Engine Light Ion Engine Propulsion VTOL Module Leg Aluminum Leg Flight Unit VTOL Module Utility Light Armor Plating Device Heat Sink Processor Terrain Scan Processor Protection Light Armor Plating Weapon Light Assault Rifle Energy Gun Particle Gun Energy Cannon Particle Cannon Ballistic Gun Light Assault Rifle Launcher Mini Grenade Launcher Build | -11 -10 -10 -10 -9 ------- Run | Yrd Mat Min Exi Min Slots Evolved . | . . . . . Power . | . . . . . Propulsion . | . . . . . Utility . | . . . . . Weapon . | . . . . . Parts Attached 22 | 5 8 3 1 5 Power 3 | 1 . 1 . 1 Engine 3 | 1 . 1 . 1 Core . | . . . . . Reactor . | . . . . . Propulsion 7 | 2 2 . . 3 Treads . | . . . . . Leg 2 | 2 . . . . Wheel . | . . . . . Hover . | . . . . . Flight 5 | . 2 . . 3 Utility 4 | . 3 . 1 . Device 1 | . 1 . . . Storage . | . . . . . Processor 1 | . . . 1 . Hackware . | . . . . . Protection 2 | . 2 . . . Artifact . | . . . . . Weapon 8 | 2 3 2 . 1 Energy Gun 2 | 1 1 . . . Energy Cannon 1 | . 1 . . . Ballistic Gun 4 | 1 1 2 . . Ballistic Cannon . | . . . . . Launcher 1 | . . . . 1 Special Weapon . | . . . . . Impact Weapon . | . . . . . Slashing Weapon . | . . . . . Piercing Weapon . | . . . . . Special Melee Weapon . | . . . . . Unidentified Prototypes . | . . . . . Parts Lost 8 | . 1 . . 7 Power 2 | . . . . 2 Propulsion 3 | . . . . 3 Utility 1 | . . . . 1 Weapon 2 | . 1 . . 1 Highest Loss Streak 6 | . 1 . . 6 To Critical Strikes . | . . . . . Average Slot Usage (%) 87 | . 86 82 86 95 Engine 13 | . 14 14 14 10 Leg 6 | . 17 . . . Flight 21 | . 10 28 28 27 Device 3 | . 10 . . . Processor 3 | . . . 1 14 Protection 12 | . 10 14 14 13 Energy Gun 2 | . 7 . . . Ballistic Gun 20 | . 14 25 28 16 Launcher 2 | . . . . 11 Naked Turns . | . . . . . Heaviest Build 12 | 6 12 8 8 8 Greatest Support 20 | 20 20 8 8 8 Greatest Overweight (x) 2 | . 2 . . . Average Overweight (x) . | . . . . . Largest Inventory Capacity 5 | 5 5 5 5 5 Average Capacity 5 | 5 5 5 5 5 Most Carried 5 | 2 5 5 5 5 Average Carried 4 | . 3 4 4 4 Final Capacity 5 | 5 5 5 5 5 Final Carried 5 | 2 5 5 5 4 Class Distribution -------------------- 74% | Sprinter 25% | Mutant Dominant Class ---------------- Mutant | -10/Materials Sprinter | -10/Mines Sprinter | -10/Exiles Sprinter | -9/Mines Resources | -11 -10 -10 -10 -9 ----------- Run | Yrd Mat Min Exi Min Matter Collected 539 | 252 76 79 . 132 Remotely . | . . . . . Salvage Created 413 | 38 218 46 . 111 Parts 34 | 3 14 7 . 10 Haulers Intercepted . | . . . . . Recyclers Shooed 1 | . 1 . . . Parts Field Recycled . | . . . . . Retrieved Matter . | . . . . . Parts Self-Destructed . | . . . . . Prevented . | . . . . . Kills | -11 -10 -10 -10 -9 ------- Run | Yrd Mat Min Exi Min Combat Hostiles Destroyed 36 | 1 5 3 . 27 Guns 12 | 1 4 3 . 4 AOE 24 | . 1 . . 23 Classes Destroyed 6 | 1 1 1 . 3 Worker 1 | . . . . 1 Watcher 2 | . 2 . . . Swarmer 10 | . . 3 . 7 Grunt 6 | 1 5 . . . Demolisher 1 | . . . . 1 Assembled 19 | . . . . 19 Best Kill Streak 26 | 1 2 3 . 26 Combat Bots Only 26 | 1 2 3 . 26 Max Kills in Single Turn 6 | 1 1 1 . 6 Gunslinging . | . . . . . Exploded 6 | . 1 . . 6 Melee . | . . . . . Uniques/NPCs Destroyed . | . . . . . Combat | -11 -10 -10 -10 -9 -------- Run | Yrd Mat Min Exi Min Hostile Shots Fired 58 | 2 18 11 . 27 Missed 20 | 1 7 4 . 8 Damage Taken 672 | 9 131 39 . 493 Core 260 | . 36 12 . 212 Absorbed by Shields . | . . . . . Ignored by Resistances 193 | 3 38 14 . 138 Core Remaining (%) 100 | 100 . . . . Volleys Fired 44 | 2 24 5 . 13 Largest 2 | 2 2 1 . 2 Hottest 85 | 60 85 20 . 50 Shots Fired 65 | 4 32 5 . 24 Gun 53 | 4 32 5 . 12 Cannon . | . . . . . Launcher 12 | . . . . 12 Special . | . . . . . Kinetic 43 | 2 24 5 . 12 Thermal 2 | . 2 . . . Explosive 12 | . . . . 12 Electromagnetic 8 | 2 6 . . . Robot Hit Streak 12 | 2 12 7 . 12 Robot Miss Streak 3 | 1 2 . . 3 Penetration Max . | . . . . . Secondary Targets . | . . . . . Shots Hit Robots 50 | 2 26 5 . 17 Core Hits 60 | 1 12 3 . 44 Critical Kills . | . . . . . Critical Parts Destroyed . | . . . . . Critical Strikes . | . . . . . Melee Attacks . | . . . . . Impact . | . . . . . Slashing . | . . . . . Piercing . | . . . . . Sneak Attacks . | . . . . . Combat Hostiles . | . . . . . Follow-up Attacks . | . . . . . Damage Inflicted 2025 | 23 381 67 . 1554 Guns 438 | 23 265 67 . 83 Cannons . | . . . . . Explosions 1587 | . 116 . . 1471 Melee . | . . . . . Ramming . | . . . . . Kinetic 326 | 8 168 67 . 83 Thermal 148 | . 148 . . . Explosive 1471 | . . . . 1471 Electromagnetic 80 | 15 65 . . . Impact . | . . . . . Slashing . | . . . . . Piercing . | . . . . . Highest Corruption . | . . . . . Average Corruption . | . . . . . Corruption Purged . | . . . . . Corruption Blocked . | . . . . . Overload Shots . | . . . . . Overflow Damage 81 | . . . . 81 Projectiles . | . . . . . Explosions 81 | . . . . 81 Melee . | . . . . . Knockbacks . | . . . . . Impact . | . . . . . Kinetic . | . . . . . Secondary . | . . . . . Self-Inflicted Damage 103 | . 30 . . 73 Shots 3 | . 1 . . 2 Rammed . | . . . . . Targets Rammed . | . . . . . Kicked . | . . . . . Crushed . | . . . . . Highest Temperature 115 | 26 115 . . 37 Average Temperature 26 | 14 44 . . 11 Received Heat Transfer 119 | 6 93 . . 20 Siege Activations . | . . . . . Robots Corrupted . | . . . . . Combat Hostiles . | . . . . . Parts Fried . | . . . . . Impact Corruptions . | . . . . . Robots Melted . | . . . . . Combat Hostiles . | . . . . . Parts Melted . | . . . . . Heat Transferred 124 | . 124 . . . Parts Sabotaged . | . . . . . Parts Stolen . | . . . . . Parts Stripped . | . . . . . Power Chain Reactions 1 | . 1 . . . Alert | -11 -10 -10 -10 -9 ------- Run | Yrd Mat Min Exi Min Peak Influence 237 | 20 220 157 . 237 Initial 72 | . 11 72 . . Average 109 | 2 110 149 . 132 Maximum Alert Level 1 | . 1 . . 1 Low Security (%) 83 | 100 95 100 . 49 Level 1 16 | . 4 . . 50 Level 2 . | . . . . . Level 3 . | . . . . . Level 4 . | . . . . . Level 5 . | . . . . . High Security . | . . . . . Max Security . | . . . . . Squads Dispatched 1 | . 1 . . . Investigation 1 | . 1 . . . Extermination . | . . . . . Reinforcement . | . . . . . Assault . | . . . . . Garrison . | . . . . . Intercept . | . . . . . Searches Triggered . | . . . . . Construction Impeded . | . . . . . Haulers Reinforced . | . . . . . Active Scanning Responses . | . . . . . Cargo Convoy Interrupts . | . . . . . Stealth | -11 -10 -10 -10 -9 --------- Run | Yrd Mat Min Exi Min Distress Signals 1 | . 1 . . . Communications Jammed . | . . . . . Distress Signals . | . . . . . Times Spotted 35 | 1 9 3 . 22 Peak Tracking Total 18 | 1 3 3 . 18 Tactical Retreats 1 | . 1 . . . Traps | -11 -10 -10 -10 -9 ------- Run | Yrd Mat Min Exi Min Traps Triggered 1 | . 1 . . . Indirectly . | . . . . . Trap Hack Attempts . | . . . . . Triggered . | . . . . . Disarmed . | . . . . . Reprogrammed . | . . . . . Reused . | . . . . . Traps Extracted . | . . . . . Installed . | . . . . . Triggered . | . . . . . Machines | -11 -10 -10 -10 -9 ---------- Run | Yrd Mat Min Exi Min Machines Disabled . | . . . . . Max in Single Turn . | . . . . . Machines Repaired . | . . . . . Machines Dismantled . | . . . . . Machines Sabotaged . | . . . . . Overloaded Fab Kills . | . . . . . Hacking | -11 -10 -10 -10 -9 --------- Run | Yrd Mat Min Exi Min Machines Accessed 5 | . 2 . 3 . Terminals 2 | . 2 . . . Fabricators . | . . . . . Repair Stations . | . . . . . Recycling Units . | . . . . . Scanalyzers . | . . . . . Garrison Access . | . . . . . Total Hacks 32 | . 6 . 26 . Successful 27 | . 1 . 26 . Failed 5 | . 5 . . . Catastrophic . | . . . . . Database Lockouts . | . . . . . Manual 2 | . 1 . 1 . Terminals 6 | . 6 . . . Fabricators . | . . . . . Repair Stations . | . . . . . Recycling Units . | . . . . . Scanalyzers . | . . . . . Garrison Access . | . . . . . Terminal Hacks 27 | . 1 . 26 . Record 26 | . . . 26 . Recall Reinforcements 1 | . 1 . . . Fabricator Hacks . | . . . . . Repair Station Hacks . | . . . . . Recycling Unit Hacks . | . . . . . Scanalyzer . | . . . . . Garrison Access Hacks . | . . . . . Unauthorized Hacks . | . . . . . Terminals . | . . . . . Fabricators . | . . . . . Repair Stations . | . . . . . Recycling Units . | . . . . . Scanalyzers . | . . . . . Garrison Access . | . . . . . Data Cores Recovered . | . . . . . Used . | . . . . . Hacking Detections 2 | . 2 . . . Full Trace Events 2 | . 2 . . . Feedback Events . | . . . . . Feedback Blocked . | . . . . . Robot Schematics Acquired . | . . . . . Robots Built . | . . . . . Authchips . | . . . . . Time . | . . . . . Total Robot Build Rating . | . . . . . Part Schematics Acquired . | . . . . . Parts Built . | . . . . . Authchips . | . . . . . Time . | . . . . . Total Part Build Rating . | . . . . . Parts Repaired . | . . . . . Time . | . . . . . Parts Recycled . | . . . . . Recycled Matter . | . . . . . Retrieved Matter . | . . . . . Retrieved Components . | . . . . . Parts Scanalyzed . | . . . . . Part Schematics Acquired . | . . . . . Parts Damaged . | . . . . . Bothacking | -11 -10 -10 -10 -9 ------------ Run | Yrd Mat Min Exi Min Used RIF Installer . | . . . . . Robots Hacked . | . . . . . Non-combat . | . . . . . Combat . | . . . . . Robot Hacks Applied . | . . . . . Relay Couplers Released . | . . . . . Fabnet Peak Effective % . | . . . . . Robots Rewired . | . . . . . Allies Hacked . | . . . . . Hacks Repelled . | . . . . . Allies | -11 -10 -10 -10 -9 -------- Run | Yrd Mat Min Exi Min Total Allies 1 | . . 1 . . Largest Group 1 | . . 1 1 . Highest-Rated Group 31 | . . 31 31 . Highest-Rated Ally 31 | . . 31 31 . Total Orders . | . . . . . Ally Attacks . | . . . . . Total Damage . | . . . . . Kills . | . . . . . Allies Corrupted . | . . . . . Allies Melted . | . . . . . Intel | -11 -10 -10 -10 -9 ------- Run | Yrd Mat Min Exi Min Robot Analysis Total . | . . . . . Derelict Logs Recovered 2 | . . 1 . 1 Drone Launches . | . . . . . Drone Recoveries . | . . . . . Exploration | -11 -10 -10 -10 -9 ------------- Run | Yrd Mat Min Exi Min Turns Passed 1003 | 86 319 111 281 206 Spaces Moved 1976 | 73 397 251 789 466 Core 26 | 26 . . . . Treads . | . . . . . Legs 176 | 47 129 . . . Wheels . | . . . . . Hover . | . . . . . Flight 1774 | . 268 251 789 466 Fastest Speed 32 | 50 32 32 32 32 Average Speed 40 | 95 61 32 32 32 Slowest Speed 205 | 120 205 32 32 35 Overloaded Moves . | . . . . . Propulsion Burnouts . | . . . . . Robots Hopped 6 | . 1 3 . 2 Cave-ins Triggered . | . . . . . Exploration Rate (%) 54 | 6 45 57 93 71 Regions Visited 4 Branch Regions 3 Pre-discovered Areas 2 | . . 1 . 1 Known Exits Taken . | . . . . . Unknown Exits Taken 4 | 1 1 1 1 . Scrap Searched 5 | . . 3 . 2 Spaces Dug . | . . . . . Terrain Destroyed 85 | . 2 . . 83 Melee . | . . . . . Projectile . | . . . . . AOE 85 | . 2 . . 83 Terrain Rammed . | . . . . . Walls Destroyed . | . . . . . Machines Disabled . | . . . . . Actions | -11 -10 -10 -10 -9 --------- Run | Yrd Mat Min Exi Min Total 2122 | 86 446 273 818 499 Wait 46 | . . 13 23 10 Move 1960 | 72 394 244 788 462 Hop 6 | . 1 3 . 2 Pick Up 23 | 7 10 1 2 3 Fast Attach 5 | . 1 2 . 2 Attach 12 | 5 5 . 1 1 Detach 3 | . 2 1 . . Swap 5 | . 2 1 . 2 Drop 18 | . 7 3 4 4 Fire 44 | 2 24 5 . 13 Melee . | . . . . . Ram . | . . . . . Kick . | . . . . . Crush . | . . . . . Escape Stasis . | . . . . . Rewire . | . . . . . Trap . | . . . . . Miscellaneous . | . . . . . Route ------- -11/Scrapyard -10/Materials -10/Mines -10/Exiles (discovered 2 exits: [*Min x2]) -9/Mines History --------- Turn | Location | Event 2 | -11/Scrapyard | Met Revision 17 68 | -11/Scrapyard | Discovered new exit (range 8) 87 | -11/Scrapyard | Entered Materials 399 | -10/Materials | Discovered new exit (range 15) 406 | -10/Materials | Entered Mines 436 | -10/Mines | Learned location of Zion (-7) 487 | -10/Mines | Received a Mining Laser from a helpful Derelict 503 | -10/Mines | Deemed a non-threat by the Exiles lab entrance 503 | -10/Mines | Discovered new exit (range 5) 517 | -10/Mines | Entered Exiles 517 | -10/Exiles | Accompanied by 1 ally 523 | -10/Exiles | Discovered new exit (range 15) 527 | -10/Exiles | Met 8R-AWN 556 | -10/Exiles | Build established: Sprinter 557 | -10/Exiles | Met EX-HEX 571 | -10/Exiles | Met EX-DEC 594 | -10/Exiles | Met EX-BIN 597 | -10/Exiles | Aligned with FarCom system 598 | -10/Exiles | Given EX-Vault access code 635 | -10/Exiles | Discovered new exit (range 14) 662 | -10/Exiles | Visited The Gauntlet 755 | -10/Exiles | Opened EX-Vault 760 | -10/Exiles | Found Prototype Flight Unit 770 | -10/Exiles | Warned to stay clear of 0b10 Research branches 798 | -10/Exiles | Left Exiles lab with Flying Fortress v7 798 | -10/Exiles | Entered Mines 801 | -9/Mines | Met a Derelict bent on vengeance 815 | -9/Mines | Learned location of Storage (-8) 897 | -9/Mines | Assembled infested the area 936 | -9/Mines | Destroyed 26 combat bots 997 | -9/Mines | Core integrity fell below 50% 1001 | -9/Mines | Core integrity fell below 20% 1004 | -9/Mines | Destroyed by D-53 Grenadier with Mini Grenade Launcher Last Messages --------------- Acquired 3 matter. The unstable cave ceiling collapses. Acquired 32 matter. Acquired Lgt. Ion Engine. Dropped VTOL Module. Acquired Flight Unit. Acquired 29 matter. The unstable cave ceiling collapses. K-01 Serf collects debris. K-01 Serf destroyed. Lgt. Ion Engine destroyed. Lgt. Armor Plating destroyed. VTOL Module destroyed. The unstable cave ceiling collapses. Flight Unit destroyed. The unstable cave ceiling collapses. D-53 Grenadier destroyed. The unstable cave ceiling collapses. Lgt. Assault Rifle destroyed. VTOL Module destroyed. Map ----- +----------------------------------------------------+ | | | | | | | | | | | | | | | | | | | | | | | | | ?????????????????????????????????????????????????? | | ############?????????????????????????????????????? | | #?????????????????????????????????????? | | #???????????????????????????###??????## | | ##### #??????????????????????????## #?????# | | ??????# #??????????????????????????# #????# | | ????????# ####???????????????????????# #??## | | ?????????# #????############????????# ### | | ?????????#### #?#### ## ##????????# | | ????????????# ### ##???????## | | ????????????# # ##???????## | | ????????????# #????????# | | ????????????##### ###??????## | | ????????????????## @ ###?????## | | ?????????????????## < #??????# | | ?????????????????# ##?????# | | ?????????????????# #?????## | | ?????????????????# d # # ##??????## | | ?????????????????# #### ##????????## | | ???????????????? #??## #??####???## | | ??????????????? ???# ##?## ##### | | ????????????? ## #??### ### | | ?????????????##?# #????# | | ???????????????? #????## ##### | | ???????????????# #?????## ##??## | | ???????????????## ### #??????## ##??## | | ????????????????### ##?? #???????#####! ##??# | | ??????????????????###???? #???????????## ! #### | | ????????????????????????? #????????????##! % ## | | ?????????????????????????? ??????????????## [ ## | | ???????????????????????????????????####### [ | | ???????????????????????????????????# = | | ???????????????????????????????????# # # | | ???????????????????????????####????# #### ###### | | ??????????????????????????## ##??# #??# #???? | | ?????????????????????????## #??# #??# #??? | | ????????????????????????## #??# #??## #?? | | ???????????????#????????# #### ###?# #?? | +----------------------------------------------------+ Best States ------------- Heat Dissipation 35 Energy Generation 10 Energy Capacity 125 Matter Stores 300 Matter Capacity 300 Sight Range 16 Terrain Scan Density 85 Armor Coverage 150 Resistance: KI 20 Resistance: TH 20 Resistance: EX 20 Resistance: EM 20 Resistance: I 20 Resistance: S 20 Resistance: P 20 Evasion (%) 63 Offensive Hacking 10 Item Schematics ----------------- None Robot Schematics ------------------ None Fabricated ------------ Nothing Alien Tech Used ----------------- None Achievements -------------- Exterminator Killing Spree Quick And Dirty Challenges ------------ None Game ------ Seed ScanPiercingMaul Manual? 0 Play Time 00:31:58 Cumulative 3.0 hours Start 2024.07.21 @ 10:52:56 End 2024.07.21 @ 11:24:36 Sessions 1 Manual Loads 0 Difficulty Adventurer Special Mode None Game No. 3 Rogue 0 Adventurer 3 Explorer 0 Win Type - Total 0 Types 0/0/0/0/0/0/0/0/0 Lore% 10 Gallery% 6 Achievement% 10 Wizard Run 0 Options --------- Layout 1 ASCII 0 Keyboard 0 Movement Mouse Keybinds 0 Fullscreen 1 Font 24/Smallcaps Map View 50x35 Zoom Use 0% Tactical HUD 0 Map Filters NONE Filters NONE Steam 1 RUN: 6c05ebb3-4802-4041-86a5-582ff71cc688